fUST/lending_fUST_20250820
["ID","MTS","AMOUNT","RATE_DAILY","PERIOD"]
[380285928,1755633032873,-480.0,0.00019726,2]
[380285929,1755633032882,-480.0,0.00019726,2]
[380285930,1755633032891,-480.0,0.00019726,2]
[380285931,1755633032900,-699.18,0.00019726,2]
[380285932,1755633032910,-1059.16,0.00019726,2]
[380285933,1755633032919,-676.86,0.00019726,2]
[380285934,1755633032928,-482.86,0.00019726,2]
[380285935,1755633032938,-151.0,0.00019733,20]
[380285936,1755633032948,-151.0,0.00019733,20]
[380285937,1755633032957,-151.0,0.00019733,20]
[380285938,1755633032967,-151.0,0.00019733,20]
[380285939,1755633032978,-500.0,0.00019733,20]
[380285940,1755633032988,-151.0,0.00019733,20]
[380285941,1755633033001,-500.0,0.00019733,20]
[380285942,1755633033011,-151.0,0.00019733,20]
[380285943,1755633033021,-151.0,0.00019733,20]
[380285944,1755633033031,-1053.0,0.00019733,20]
[380285945,1755633033041,-500.0,0.00019733,20]
[380285946,1755633033051,-500.0,0.00019733,14]
[380285947,1755633033061,-151.0,0.00019733,20]
[380285948,1755633033070,-151.0,0.00019733,20]
[380285949,1755633033080,-151.0,0.00019733,20]
[380285950,1755633033091,-151.0,0.00019733,20]
[380285951,1755633033100,-151.0,0.00019733,20]
[380285952,1755633033110,-151.0,0.00019733,20]
[380285953,1755633033119,-151.66294125,0.00019733,20]
[380285954,1755633033129,-156.32328094,0.00019733,20]
[380285955,1755633033139,-600.0,0.00019847,20]
[380285956,1755633033148,-500.0,0.0001985,2]
[380285957,1755633033157,-500.0,0.0001985,2]
[380285958,1755633033167,-365.667026,0.00019863,2]
[380285959,1755633033176,-4032.60374251,0.000199,2]
[380285960,1755633033185,-412.38892284,0.0002,2]
[380285961,1755633033195,-480.0,0.0002,2]
[380285962,1755633033204,-480.0,0.0002,2]
[380285963,1755633033214,-699.18,0.0002,2]
[380285964,1755633033223,-1059.16,0.0002,2]
[380285965,1755633033233,-676.86,0.0002,2]
[380285966,1755633033242,-482.86,0.0002,2]
[380285967,1755633033253,-151.0,0.00020007,20]
[380285968,1755633033263,-151.0,0.00020007,20]
[380285969,1755633033273,-151.0,0.00020007,20]
[380285970,1755633033282,-302.0,0.00020007,20]
[380285971,1755633033291,-151.0,0.00020007,20]
[380285972,1755633033301,-268.16801585,0.00020007,20]
[380285973,1755633033310,-151.0,0.00020007,20]
[380285974,1755633033319,-1053.0,0.00020007,20]
[380285975,1755633033329,-500.0,0.00020007,20]
[380285976,1755633033338,-151.0,0.00020007,14]
[380285977,1755633033348,-151.0,0.00020007,20]
[380285978,1755633033357,-151.0,0.00020007,20]
[380285979,1755633033367,-151.0,0.00020007,20]
[380285980,1755633033378,-151.0,0.00020007,20]
[380285981,1755633033388,-152.96448432,0.0002002,2]
[380285982,1755633033398,-500.0,0.00020106,2]
[380285983,1755633033408,-500.0,0.00020106,2]
[380285984,1755633033419,-260.947657,0.00020187,2]
[380285985,1755633033428,-500.0,0.00020272,2]
[380285986,1755633033438,-592.64451488,0.00020273,2]
[380285987,1755633033448,-480.0,0.00020273,2]
[380285988,1755633033458,-699.18,0.00020273,2]
[380285989,1755633033468,-1059.16,0.00020273,2]
[380285990,1755633033480,-676.86,0.00020273,2]
[380285991,1755633033489,-482.86,0.00020273,2]
[380285992,1755633033499,-151.0,0.00020281,20]
[380285993,1755633033509,-151.0,0.00020281,20]
[380285994,1755633033519,-1053.0,0.00020281,20]
[380285995,1755633033528,-604.0,0.00020281,20]
[380285996,1755633033539,-151.0,0.00020281,20]
[380285997,1755633033549,-151.0,0.00020281,20]
[380285998,1755633033559,-151.0,0.00020281,20]
[380285999,1755633033568,-4032.6037423,0.00020313,2]
[380286000,1755633033578,-1000.0,0.00020398,2]
[380286001,1755633033587,-500.0,0.00020482,2]
[380286002,1755633033597,-500.0,0.00020482,2]
[380286003,1755633033607,-480.0,0.00020547,2]
[380286004,1755633033616,-699.18,0.00020547,2]
[380286005,1755633033625,-295.95785811,0.00020547,2]
[380286040,1755633037778,-763.20214189,0.00020547,2]
[380286043,1755633037788,-456.37255476,0.00020547,2]
[380286140,1755633039771,-220.48744524,0.00020547,2]
[380286142,1755633039781,-482.86,0.00020547,2]
[380286144,1755633039791,-190.62442388,0.00020555,20]
[380286145,1755633039800,-151.0,0.00020555,20]
[380286146,1755633039810,-1053.0,0.00020555,20]
[380286147,1755633039820,-151.0,0.00020555,20]
[380286148,1755633039829,-245.0,0.00020555,20]
[380286149,1755633039839,-198.0,0.00020555,20]
[380286150,1755633039848,-420.0,0.00020603,2]
[380286151,1755633039857,-160.0,0.00020636,2]
[380286152,1755633039867,-417.15472785,0.0002064,2]
[380286154,1755633039876,-160.0,0.0002064,2]
[380286155,1755633039885,-146.96784017,0.0002064,2]
[380286191,1755633042723,-69.91566443,0.0002064,2]
[380286193,1755633042732,-843.93972674,0.0002064,2]
[380286195,1755633042741,-36.14460883,0.0002064,2]
[380286205,1755633042829,-123.85539117,0.0002064,2]
[380286207,1755633042838,-232.21311493,0.0002064,2]
[380286209,1755633042847,-375.88899365,0.0002064,2]
[380286211,1755633042856,-528.6845513,0.0002064,2]
[380286213,1755633042866,-657.43008234,0.00020684,10]
[380286377,1755633250147,613.710293,0.00018536,2]
[380286378,1755633387565,10192.1987206,0.00018262,2]
[380286379,1755633436661,1631.36781997,0.0001807,2]
[380286380,1755633436683,24000.0,0.0001807,2]
[380286381,1755633436703,3652.01424523,0.0001807,2]
[380286382,1755633566546,1000.0,0.00018063,2]
[380286383,1755633640869,254.073722,0.00013699,2]
[380286386,1755634025117,-208.51760237,0.00018702,3]
[380286387,1755634025137,-208.51760237,0.00018739,3]
[380286388,1755634025158,-208.51760237,0.00018776,3]
[380286389,1755634025178,-1613.07501254,0.000189,2]
[380286390,1755634025197,-165.07081403,0.00018976,2]
[380286391,1755634025216,-165.070814,0.00018976,2]
[380286392,1755634025237,-165.070814,0.00018977,2]
[380286393,1755634025257,-165.070814,0.00018977,2]
[380286394,1755634025276,-2536.86406459,0.00018977,2]
[380286395,1755634025296,-1200.0,0.00019076,2]
[380286396,1755634025316,-300.0,0.00019076,2]
[380286397,1755634025336,-13912.05044473,0.00019077,2]
[380286398,1755634027096,-36087.94955527,0.00019077,2]
[380286399,1755634027116,-1158.0,0.00019077,2]
[380286400,1755634027138,-480.0,0.00019178,2]
[380286401,1755634027158,-480.0,0.00019178,2]
[380286402,1755634027178,-480.0,0.00019178,2]
[380286403,1755634027198,-300.0,0.00019178,2]
[380286404,1755634027219,-524.38,0.00019178,2]
[380286405,1755634027241,-526.66,0.00019178,2]
[380286406,1755634027261,-480.0,0.00019178,2]
[380286407,1755634027281,-480.0,0.00019178,2]
[380286408,1755634027301,-480.0,0.00019178,2]
[380286409,1755634027321,-480.0,0.00019178,2]
[380286410,1755634027340,-466.62826441,0.00019178,2]
[380286411,1755634027359,-480.0,0.00019178,2]
[380286412,1755634027380,-346.4,0.00019178,2]
[380286413,1755634027399,-480.0,0.00019178,2]
[380286414,1755634027418,-426.48246694,0.00019178,2]
[380286415,1755634027436,-480.0,0.00019178,2]
[380286416,1755634027455,-179.33548377,0.00019216,2]
[380286417,1755634027473,-480.0,0.00019227,2]
[380286418,1755634027494,-330.24845076,0.00019227,2]
[380286419,1755634027515,-480.0,0.00019227,2]
[380286420,1755634027534,-480.0,0.00019227,2]
[380286421,1755634027554,-480.0,0.00019227,2]
[380286422,1755634027574,-480.0,0.00019227,2]
[380286423,1755634027595,-10000.0,0.00019227,2]
[380286424,1755634027617,-480.0,0.00019451,2]
[380286425,1755634027639,-826.17,0.00019451,2]
[380286426,1755634027661,-524.38,0.00019452,2]
[380286427,1755634027686,-526.66,0.00019452,2]
[380286428,1755634027707,-480.0,0.00019452,2]
[380286429,1755634027731,-480.0,0.00019452,2]
[380286430,1755634027754,-450.32,0.00019452,2]
[380286431,1755634027778,-300.0,0.00019561,20]
[380286432,1755634027800,-300.0,0.00019561,20]
[380286433,1755634027826,-300.0,0.00019561,20]
[380286434,1755634027850,-300.0,0.00019561,20]
[380286435,1755634027872,-300.0,0.00019561,20]
[380286436,1755634027895,-300.0,0.00019561,20]
[380286437,1755634027919,-300.0,0.00019561,20]
[380286438,1755634027941,-300.0,0.00019561,20]
[380286439,1755634027963,-300.0,0.00019561,20]
[380286440,1755634027986,-300.0,0.00019561,20]
[380286441,1755634028008,-300.0,0.00019561,20]
[380286442,1755634028030,-300.0,0.00019561,20]
[380286443,1755634028053,-300.0,0.00019561,20]
[380286444,1755634028075,-300.0,0.00019561,20]
[380286445,1755634028097,-300.0,0.00019561,20]
[380286446,1755634028117,-500.0,0.00019561,20]
[380286447,1755634028139,-826.17,0.00019725,2]
[380286448,1755634028163,-524.38,0.00019726,2]
[380286449,1755634028187,-526.66,0.00019726,2]
[380286450,1755634028209,-480.0,0.00019726,2]
[380286451,1755634028231,-480.0,0.00019726,2]
[380286452,1755634028254,-500.0,0.00019835,20]
[380286453,1755634028273,-292.53362,0.00019863,2]
[380286454,1755634028294,-4144.92928186,0.000199,2]
[380286455,1755634028314,-481.15,0.00019989,3]
[380286456,1755634028334,-320.75,0.0001999,3]
[380286457,1755634028355,-7116.4652153,0.00019999,2]
[380286458,1755634028377,-826.17,0.00019999,2]
[380286459,1755634028398,-524.38,0.0002,2]
[380286460,1755634028420,-526.66,0.0002,2]
[380286461,1755634028442,-480.0,0.0002,2]
[380286462,1755634028462,-480.0,0.0002,2]
[380286463,1755634028483,-2536.86406455,0.00020113,2]
[380286464,1755634028508,-254.073722,0.00020187,2]
[380286465,1755634028530,-160.38,0.00020189,3]
[380286466,1755634028550,-500.74844905,0.00020238,2]
[380286467,1755634028569,-500.0,0.00020238,2]
[380286468,1755634028588,-500.0,0.00020238,2]
[380286469,1755634028612,-500.0,0.00020238,2]
[380286470,1755634028637,-500.0,0.00020238,2]
[380286471,1755634028658,-500.0,0.00020238,2]
[380286472,1755634028682,-500.0,0.00020238,2]
[380286473,1755634028702,-500.0,0.00020238,2]
[380286474,1755634028724,-500.0,0.00020238,2]
[380286475,1755634028744,-500.0,0.00020238,2]
[380286476,1755634028766,-500.0,0.00020238,2]
[380286477,1755634028786,-501.06801701,0.00020238,2]
[380286478,1755634028806,-259.17059567,0.00020238,2]
[380286479,1755634028826,-500.0,0.00020238,2]
[380286480,1755634028847,-311.4163352,0.00020238,2]
[380286481,1755634028867,-500.0,0.00020238,2]
[380286482,1755634028886,-501.25711225,0.00020238,2]
[380286483,1755634028905,-500.0,0.00020238,2]
[380286484,1755634028925,-500.0,0.00020269,2]
[380286485,1755634028945,-500.0,0.00020269,2]
[380286486,1755634028965,-500.0,0.00020269,2]
[380286487,1755634028985,-500.0,0.00020269,2]
[380286488,1755634029007,-500.0,0.00020269,2]
[380286489,1755634029027,-500.0,0.00020269,2]
[380286490,1755634029048,-500.0,0.00020269,2]
[380286491,1755634029070,-500.0,0.00020269,2]
[380286492,1755634029091,-500.0,0.00020269,2]
[380286493,1755634029111,-500.0,0.00020269,2]
[380286494,1755634029132,-500.0,0.00020269,2]
[380286495,1755634029152,-500.0,0.00020269,2]
[380286496,1755634029181,-500.0,0.00020269,2]
[380286497,1755634029205,-500.0,0.00020269,2]
[380286498,1755634029227,-161.45513633,0.00020269,2]
[380286499,1755634029255,-500.0,0.00020269,2]
[380286500,1755634029277,-500.0,0.00020269,2]
[380286501,1755634029298,-500.0,0.00020269,2]
[380286502,1755634029319,-500.0,0.00020269,2]
[380286503,1755634029339,-500.0,0.00020269,2]
[380286504,1755634029359,-500.0,0.00020269,2]
[380286505,1755634029380,-500.0,0.00020269,2]
[380286506,1755634029401,-500.0,0.00020269,2]
[380286507,1755634029421,-500.0,0.00020269,2]
[380286508,1755634029441,-461.85893494,0.00020269,2]
[380286509,1755634029461,-500.0,0.00020269,2]
[380286510,1755634029481,-500.0,0.00020269,2]
[380286511,1755634029503,-500.0,0.00020269,2]
[380286512,1755634029523,-500.0,0.00020269,2]
[380286513,1755634029542,-500.0,0.00020269,2]
[380286514,1755634029563,-500.0,0.00020269,2]
[380286515,1755634029583,-520.16951371,0.00020269,2]
[380286516,1755634029602,-500.0,0.00020269,2]
[380286517,1755634029623,-500.0,0.00020269,2]
[380286518,1755634029643,-500.0,0.00020269,2]
[380286519,1755634029663,-500.0,0.00020269,2]
[380286520,1755634029688,-500.0,0.00020269,2]
[380286521,1755634029709,-500.0,0.00020269,2]
[380286522,1755634029731,-500.0,0.00020269,2]
[380286523,1755634029752,-500.0,0.00020269,2]
[380286524,1755634029774,-500.0,0.00020269,2]
[380286525,1755634029797,-500.0,0.00020269,2]
[380286526,1755634029818,-427.69168246,0.00020269,2]
[380286527,1755634050096,-7483.71029015,0.0002,2]
[380286528,1755634050116,-189.52552289,0.00020169,2]
[380286529,1755634050140,-72.30831754,0.00020269,2]
[380286530,1755634050161,-360.0,0.00020269,2]
[380286531,1755634050182,-500.0,0.00020269,2]
[380286532,1755634050203,-500.0,0.00020269,2]
[380286533,1755634050225,-500.0,0.00020269,2]
[380286534,1755634050245,-500.0,0.00020269,2]
[380286535,1755634050266,-500.0,0.00020269,2]
[380286536,1755634050286,-500.0,0.00020269,2]
[380286537,1755634050307,-500.0,0.00020269,2]
[380286538,1755634050327,-500.0,0.00020269,2]
[380286539,1755634050348,-500.0,0.00020269,2]
[380286540,1755634050368,-500.0,0.00020269,2]
[380286541,1755634050390,-500.0,0.00020269,2]
[380286542,1755634050412,-500.0,0.00020269,2]
[380286543,1755634050431,-500.0,0.00020269,2]
[380286544,1755634050452,-240.73950521,0.00020269,2]
[380286545,1755634050472,-500.0,0.00020269,2]
[380286546,1755634050491,-500.0,0.00020269,2]
[380286547,1755634050512,-500.0,0.00020269,2]
[380286548,1755634050531,-500.0,0.00020269,2]
[380286549,1755634050551,-500.0,0.00020269,2]
[380286550,1755634050571,-500.0,0.00020269,2]
[380286551,1755634050590,-500.0,0.00020269,2]
[380286552,1755634050609,-500.0,0.00020269,2]
[380286553,1755634050628,-184.28779064,0.00020269,2]
[380286554,1755634050651,-500.0,0.00020269,2]
[380286555,1755634050671,-500.0,0.00020269,2]
[380286556,1755634050696,-500.0,0.00020269,2]
[380286557,1755634050715,-500.0,0.00020269,2]
[380286558,1755634050736,-500.0,0.00020269,2]
[380286559,1755634050756,-500.0,0.00020269,2]
[380286560,1755634050777,-500.0,0.00020269,2]
[380286561,1755634050797,-500.0,0.00020269,2]
[380286562,1755634050817,-500.0,0.00020269,2]
[380286563,1755634050836,-500.0,0.00020269,2]
[380286564,1755634050857,-500.0,0.00020269,2]
[380286565,1755634050876,-500.0,0.00020269,2]
[380286566,1755634050898,-500.0,0.00020269,2]
[380286567,1755634050919,-409.06706575,0.00020269,2]
[380286568,1755634050939,-600.06251046,0.00020269,2]
[380286569,1755634050960,-500.0,0.00020269,2]
[380286570,1755634050980,-500.0,0.00020269,2]
[380286571,1755634051001,-500.0,0.00020269,2]
[380286572,1755634051021,-500.0,0.00020269,2]
[380286573,1755634051041,-500.0,0.00020269,2]
[380286574,1755634051062,-500.0,0.00020269,2]
[380286575,1755634051083,-500.0,0.00020269,2]
[380286576,1755634051102,-500.0,0.00020269,2]
[380286577,1755634051122,-450.55918375,0.00020269,2]
[380286578,1755634051143,-500.0,0.00020269,2]
[380286579,1755634051163,-500.0,0.00020269,2]
[380286580,1755634051183,-500.0,0.00020269,2]
[380286581,1755634051201,-1000.0,0.0002027,2]
[380286582,1755634051222,-1037.17,0.0002027,2]
[380286583,1755634051242,-500.0,0.00020273,2]
[380286584,1755634051261,-351.47899447,0.00020273,2]
[380286585,1755634051280,-520.92936452,0.00020273,2]
[380286586,1755634051300,-420.6387332,0.00020273,2]
[380286587,1755634051319,-502.29518042,0.00020273,2]
[380286588,1755634051341,-500.0,0.00020273,2]
[380286589,1755634051360,-500.0,0.00020273,2]
[380286590,1755634051379,-500.0,0.00020273,2]
[380286591,1755634051400,-500.0,0.00020273,2]
[380286592,1755634051418,-500.54325359,0.00020273,2]
[380286593,1755634051437,-500.0,0.00020273,2]
[380286594,1755634051456,-500.0,0.00020273,2]
[380286595,1755634051476,-500.0,0.00020273,2]
[380286596,1755634051495,-500.0,0.00020273,2]
[380286597,1755634051513,-500.2094872,0.00020273,2]
[380286598,1755634051532,-500.0,0.00020273,2]
[380286599,1755634051550,-500.0,0.00020273,2]
[380286600,1755634051569,-500.0,0.00020273,2]
[380286601,1755634051588,-339.52328466,0.00020273,2]
[380286602,1755634051608,-500.0,0.00020273,2]
[380286603,1755634051627,-500.0,0.00020273,2]
[380286604,1755634051649,-524.38,0.00020273,2]
[380286605,1755634051670,-526.66,0.00020273,2]
[380286606,1755634051694,-480.0,0.00020273,2]
[380286607,1755634051714,-480.0,0.00020273,2]
[380286608,1755634051736,-826.17,0.00020273,2]
[380286609,1755634051754,-500.0,0.00020296,2]
[380286610,1755634051775,-160.0,0.000203,2]
[380286611,1755634051797,-4144.92928181,0.00020313,2]
[380286612,1755634051821,-600.0,0.00020399,20]
[380286613,1755634051841,-524.38,0.00020547,2]
[380286614,1755634051863,-526.66,0.00020547,2]
[380286615,1755634051882,-480.0,0.00020547,2]
[380286616,1755634051906,-480.0,0.00020547,2]
[380286617,1755634051925,-826.17,0.00020547,2]
[380286618,1755634051945,-151.0,0.00020555,20]
[380286619,1755634051964,-198.0,0.00020555,20]
[380286620,1755634051983,-833.0,0.00020555,20]
[380286621,1755634052003,-151.01534636,0.00020555,20]
[380286622,1755634052021,-327.0,0.00020586,2]
[380286623,1755634052041,-893.18852962,0.00020629,2]
[380286624,1755634052061,-160.0,0.00020639,2]
[380286625,1755634052081,-375.88899365,0.00020639,2]
[380286626,1755634052101,-232.21311493,0.00020639,2]
[380286627,1755634052120,-160.0,0.00020639,2]
[380286628,1755634052142,-216.8835046,0.00020639,2]
[380286629,1755634052161,-843.93972674,0.00020639,2]
[380286630,1755634052180,-1000.0,0.0002064,2]
[380286631,1755634052199,-1000.0,0.0002064,2]
[380286632,1755634052219,-153.64618084,0.0002064,2]
[380286633,1755634052238,-151.0,0.0002064,2]
[380286634,1755634052257,-151.0,0.0002064,2]
[380286635,1755634052276,-151.0,0.0002064,2]
[380286636,1755634052295,-151.0,0.0002064,2]
[380286637,1755634052314,-151.0,0.0002064,2]
[380286638,1755634052332,-293.95721229,0.0002064,2]
[380286639,1755634052353,-12685.85563623,0.00020715,10]
[380286640,1755634052372,-528.6845513,0.00020715,10]
[380286641,1755634052392,-417.15472785,0.00020715,10]
[380286642,1755634052412,-375.88899365,0.00020715,10]
[380286643,1755634052433,-3206.43,0.00020718,10]
[380286644,1755634052453,-3847.72,0.00020719,10]
[380286645,1755634052473,-4144.92928181,0.00020725,2]
[380286646,1755634052494,-1518.42945787,0.00020728,3]
[380286647,1755634073220,150.0,0.00027,120]
[380286648,1755634166636,176.326102,0.00018126,2]
[380286649,1755634166996,176.326102,0.00018187,2]
[380286650,1755634167335,176.326102,0.00018247,2]
[380286651,1755634167584,176.326102,0.00018308,2]
[380286669,1755634231941,-5992.4583989,0.00019029,2]
[380286671,1755634231951,-300.0,0.00019077,2]
[380286674,1755634231960,-12539.38176462,0.00019078,2]
[380286676,1755634231970,-480.0,0.00019178,2]
[380286678,1755634231979,-480.0,0.00019178,2]
[380286680,1755634231988,-480.0,0.00019178,2]
[380286682,1755634231998,-480.0,0.00019178,2]
[380286684,1755634232007,-164.46364293,0.00019452,2]
[380286686,1755634232016,-480.0,0.00019452,2]
[380286688,1755634232025,-480.0,0.00019452,2]
[380286690,1755634232034,-300.0,0.00019459,20]
[380286692,1755634232044,-300.0,0.00019459,20]
[380286694,1755634232053,-300.0,0.00019459,20]
[380286696,1755634232062,-300.0,0.00019459,20]
[380286698,1755634232071,-300.0,0.00019459,20]
[380286701,1755634232080,-300.0,0.00019459,20]
[380286704,1755634232089,-300.0,0.00019459,20]
[380286707,1755634232099,-300.0,0.00019459,20]
[380286710,1755634232109,-300.0,0.00019459,20]
[380286713,1755634232119,-300.0,0.00019459,20]
[380286715,1755634232128,-300.0,0.00019459,20]
[380286717,1755634232138,-300.0,0.00019459,20]
[380286719,1755634232148,-300.0,0.00019459,20]
[380286721,1755634232158,-300.0,0.00019459,20]
[380286723,1755634232168,-300.0,0.00019459,20]
[380286725,1755634232178,-480.0,0.00019726,2]
[380286727,1755634232187,-480.0,0.00019726,2]
[380286729,1755634232197,-600.0,0.00019847,20]
[380286731,1755634232206,-480.0,0.0002,2]
[380286733,1755634232216,-480.0,0.0002,2]
[380286735,1755634232225,-289.01355301,0.00020106,2]
[380286737,1755634232234,-160.58922772,0.00020273,2]
[380286739,1755634232244,-500.0,0.00020273,2]
[380286741,1755634232253,-500.0,0.00020273,2]
[380286743,1755634232262,-6960.17136281,0.00020273,2]
[380286747,1755634232294,-12.19821959,0.00020273,2]
[380286870,1755634233452,-10023.580336,0.00020273,2]
[380286974,1755634237914,-1075.38334169,0.000189,2]
[380286975,1755634237924,-2962.70387127,0.00020273,2]
[380286976,1755634237934,-480.0,0.00020273,2]
[380286977,1755634237943,-480.0,0.00020273,2]
[380286978,1755634237953,-480.0,0.00020547,2]
[380286979,1755634237962,-480.0,0.00020547,2]
[380286980,1755634237971,-215.79176414,0.00020553,2]
[380286981,1755634237980,-232.21311493,0.00020553,2]
[380286982,1755634237988,-375.88899365,0.00020553,2]
[380286983,1755634237997,-160.0,0.00020553,2]
[380286984,1755634238006,-843.93972674,0.00020553,2]
[380286985,1755634238015,-480.0,0.00020712,2]
[380286986,1755634238025,-480.0,0.00020712,2]
[380286987,1755634238035,-22539.1727163,0.00020728,3]
[380286988,1755634238044,-375.88899365,0.00020728,3]
[380286989,1755634238053,-160.0,0.00020728,3]
[380286990,1755634238062,-714.55082372,0.00020729,2]
[380286991,1755634238071,-500.0,0.00020773,2]
[380286992,1755634238080,-500.0,0.00020773,2]
[380286993,1755634238089,-500.0,0.00020773,2]
[380286994,1755634238099,-500.0,0.00020773,2]
[380286995,1755634238108,-1680.0,0.00020791,2]
[380286996,1755634238117,-420.0,0.00020792,2]
[380286997,1755634238126,-3441.57,0.00020818,10]
[380286998,1755634238135,-2867.98,0.00020818,10]
[380286999,1755634238144,-2389.98,0.00020818,10]
[380287000,1755634238154,-826.17,0.00020821,2]
[380287001,1755634238163,-480.0,0.00020821,2]
[380287002,1755634238172,-480.0,0.00020821,2]
[380287003,1755634238182,-500.0,0.00020827,2]
[380287004,1755634238191,-162.42877055,0.00020827,2]
[380287005,1755634238201,-520.47642118,0.00020827,2]
[380287006,1755634238209,-471.19327836,0.00020827,2]
[380287007,1755634238218,-224.4632793,0.00020827,2]
[380287008,1755634238228,-500.0,0.00020827,2]
[380287009,1755634238237,-500.0,0.00020827,2]
[380287010,1755634238246,-540.0,0.00020827,2]
[380287011,1755634238256,-400.00694561,0.00020827,2]
[380287012,1755634238265,-500.0,0.00020827,2]
[380287013,1755634238274,-489.89634064,0.00020827,2]
[380287015,1755634238285,-272.28435375,0.00020827,2]
[380287017,1755634238294,-3558.23260765,0.00020828,2]
[380287019,1755634238303,-51637.53052928,0.00020828,2]
[380287028,1755634238381,-366.65693215,0.00020828,2]
[380287031,1755634238396,-317995.81253857,0.00020828,2]
[380287033,1755634238405,-151.0,0.00020829,20]
[380287035,1755634238415,-833.0,0.00020829,20]
[380287037,1755634238424,-500.0,0.00020873,2]
[380287039,1755634238433,-500.0,0.00020873,2]
[380287041,1755634238442,-377.08076169,0.00020873,2]
[380287043,1755634238451,-500.0,0.00020873,2]
[380287045,1755634238460,-1000.0,0.00020926,2]
[380287047,1755634238469,-1000.0,0.00020926,2]
[380287049,1755634238478,-1000.0,0.00020926,2]
[380287051,1755634238488,-1000.0,0.00020926,2]
[380287053,1755634238497,-1000.0,0.00020926,2]
[380287055,1755634238506,-1000.0,0.00020937,2]
[380287057,1755634238515,-1000.0,0.00020937,2]
[380287059,1755634238524,-1000.0,0.00020937,2]
[380287060,1755634238534,-1000.0,0.00020937,2]
[380287062,1755634238543,-171.63111371,0.00020937,2]
[380287064,1755634238551,-480.0,0.00020986,2]
[380287066,1755634238560,-480.0,0.00020986,2]
[380287068,1755634238569,-3000.0,0.00021,2]
[380287070,1755634238579,-500.0,0.00021007,2]
[380287072,1755634238588,-3000.0,0.0002101,2]
[380287074,1755634238597,-3000.0,0.0002102,2]
[380287076,1755634238607,-3000.0,0.0002103,2]
[380287078,1755634238616,-3000.0,0.0002104,2]
[380287080,1755634238625,-3000.0,0.0002105,2]
[380287082,1755634238635,-3000.0,0.0002106,2]
[380287084,1755634238644,-3000.0,0.0002107,2]
[380287086,1755634238654,-3000.0,0.0002108,2]
[380287088,1755634238663,-3000.0,0.0002109,2]
[380287090,1755634238673,-826.17,0.00021095,2]
[380287092,1755634238682,-480.0,0.00021095,2]
[380287093,1755634238691,-480.0,0.00021095,2]
[380287095,1755634238700,-3000.0,0.000211,2]
[380287097,1755634238709,-151.0,0.00021103,20]
[380287099,1755634238718,-833.0,0.00021103,20]
[380287101,1755634238727,-3000.0,0.0002111,2]
[380287103,1755634238740,-3000.0,0.0002112,2]
[380287105,1755634238751,-3000.0,0.0002113,2]
[380287107,1755634238762,-4144.92928181,0.00021138,2]
[380287109,1755634238772,-3000.0,0.0002114,2]
[380287111,1755634238783,-3000.0,0.0002115,2]
[380287113,1755634238792,-3000.0,0.0002116,2]
[380287115,1755634238801,-3000.0,0.0002117,2]
[380287117,1755634238810,-3000.0,0.0002118,2]